[Event "Early-Titled-Tuesday-Blitz-August-29-2023"]
[Site "Chess.com"]
[Date "2023.08.29"]
[Round "5"]
[White "Herzog2012"]
[Black "KejJaj"]
[Result "1-0"]
[WhiteElo "2420"]
[BlackElo "2164"]
[TimeControl "180+1"]
[EndTime "8:54:18 PDT"]
[Termination "Herzog2012 won by checkmate"]

1. e4 {[%clk 0:03:00.4]} 1... c5 {[%clk 0:02:59.3]} 2. Nf3 {[%clk 0:03:00.2]}
2... d6 {[%clk 0:02:59.9]} 3. d4 {[%clk 0:03:00.4]} 3... cxd4 {[%clk 0:03:00.8]}
4. Nxd4 {[%clk 0:03:01.1]} 4... Nf6 {[%clk 0:03:01.3]} 5. Nc3 {[%clk 0:03:01.4]}
5... g6 {[%clk 0:03:01.9]} 6. Be3 {[%clk 0:03:01.2]} 6... Bg7 {[%clk 0:03:02.5]}
7. f3 {[%clk 0:03:01.7]} 7... O-O {[%clk 0:03:02.7]} 8. Qd2 {[%clk 0:03:01.3]}
8... Nc6 {[%clk 0:03:03.1]} 9. O-O-O {[%clk 0:03:01]} 9... d5 {[%clk 0:03:02.4]}
10. Nxc6 {[%clk 0:03:00.5]} 10... bxc6 {[%clk 0:03:01.4]} 11. Bh6 {[%clk
0:03:01]} 11... Bxh6 {[%clk 0:02:37.5]} 12. Qxh6 {[%clk 0:02:59.8]} 12... Qb6
{[%clk 0:02:29.6]} 13. h4 {[%clk 0:02:48.7]} 13... Rb8 {[%clk 0:02:12.2]} 14. b3
{[%clk 0:02:43.2]} 14... Qb4 {[%clk 0:02:08.9]} 15. Kb2 {[%clk 0:02:37.9]} 15...
d4 {[%clk 0:01:40.3]} 16. Nb1 {[%clk 0:01:52]} 16... e5 {[%clk 0:01:39.8]} 17.
h5 {[%clk 0:01:39.5]} 17... a5 {[%clk 0:01:37.8]} 18. hxg6 {[%clk 0:01:37.7]}
18... fxg6 {[%clk 0:01:37.8]} 19. Kc1 {[%clk 0:01:23.2]} 19... a4 {[%clk
0:01:34.3]} 20. Bc4+ {[%clk 0:01:20.7]} 20... Rf7 {[%clk 0:01:24.1]} 21. g4
{[%clk 0:01:00.6]} 21... axb3 {[%clk 0:01:16.3]} 22. axb3 {[%clk 0:01:01.1]}
22... Rb7 {[%clk 0:01:02.2]} 23. g5 {[%clk 0:00:48.3]} 23... Nh5 {[%clk
0:01:00.7]} 24. Rdg1 {[%clk 0:00:16.4]} 24... Ra7 {[%clk 0:00:42.4]} 25. Rxh5
{[%clk 0:00:13.6]} 25... Ra1 {[%clk 0:00:37.5]} 26. Qxh7+ {[%clk 0:00:08.3]}
26... Kf8 {[%clk 0:00:35.8]} 27. Qxf7# {[%clk 0:00:09.2]} 1-0

[Event "Early-Titled-Tuesday-Blitz-August-29-2023"]
[Site "Chess.com"]
[Date "2023.08.29"]
[Round "5"]
[White "WildTricks"]
[Black "Beca95"]
[Result "0-1"]
[WhiteElo "2650"]
[BlackElo "2958"]
[TimeControl "180+1"]
[EndTime "8:54:20 PDT"]
[Termination "Beca95 won on time"]

1. e4 {[%clk 0:03:00.9]} 1... c5 {[%clk 0:03:00.9]} 2. Nf3 {[%clk 0:03:00.3]}
2... a6 {[%clk 0:03:01.4]} 3. c3 {[%clk 0:02:58.3]} 3... e6 {[%clk 0:03:01.3]}
4. d4 {[%clk 0:02:57.7]} 4... d5 {[%clk 0:03:01.8]} 5. e5 {[%clk 0:02:56.8]}
5... Bd7 {[%clk 0:02:58.7]} 6. Be3 {[%clk 0:02:51]} 6... cxd4 {[%clk 0:02:58.5]}
7. Nxd4 {[%clk 0:02:45.2]} 7... Nc6 {[%clk 0:02:57.7]} 8. f4 {[%clk 0:02:44.2]}
8... Nge7 {[%clk 0:02:52.9]} 9. Bd3 {[%clk 0:02:42.3]} 9... Nxd4 {[%clk
0:02:51.7]} 10. cxd4 {[%clk 0:02:34.4]} 10... Bb5 {[%clk 0:02:52.1]} 11. Bc2
{[%clk 0:02:24.1]} 11... a5 {[%clk 0:02:50.8]} 12. Nc3 {[%clk 0:02:22.9]} 12...
Ba6 {[%clk 0:02:50.4]} 13. a4 {[%clk 0:02:17.2]} 13... Nc6 {[%clk 0:02:50.5]}
14. Nb5 {[%clk 0:02:16.6]} 14... Bb4+ {[%clk 0:02:49.6]} 15. Kf2 {[%clk
0:02:15.6]} 15... Bxb5 {[%clk 0:02:48]} 16. axb5 {[%clk 0:02:14.9]} 16... Ne7
{[%clk 0:02:48.6]} 17. g4 {[%clk 0:02:09.1]} 17... h5 {[%clk 0:02:47.1]} 18. h3
{[%clk 0:02:06.6]} 18... g6 {[%clk 0:02:46.3]} 19. Qe2 {[%clk 0:01:50.2]} 19...
Qb6 {[%clk 0:02:41.6]} 20. Bd3 {[%clk 0:01:47.5]} 20... Kd7 {[%clk 0:02:40.7]}
21. f5 {[%clk 0:01:41.4]} 21... gxf5 {[%clk 0:02:33.3]} 22. gxf5 {[%clk
0:01:36.8]} 22... Nxf5 {[%clk 0:02:33]} 23. Bxf5 {[%clk 0:01:36.4]} 23... exf5
{[%clk 0:02:33.9]} 24. Qd3 {[%clk 0:01:31.5]} 24... Qe6 {[%clk 0:02:30]} 25.
Rhg1 {[%clk 0:01:28.4]} 25... Rhg8 {[%clk 0:02:29.2]} 26. Bf4 {[%clk 0:01:13.6]}
26... Rac8 {[%clk 0:02:24.2]} 27. Rxg8 {[%clk 0:01:10.6]} 27... Rxg8 {[%clk
0:02:23.5]} 28. Rg1 {[%clk 0:01:09.6]} 28... Rg6 {[%clk 0:02:13.3]} 29. Qf3
{[%clk 0:00:56.5]} 29... Kc7 {[%clk 0:01:58.7]} 30. Rc1+ {[%clk 0:00:51.1]}
30... Kb6 {[%clk 0:01:48.6]} 31. Qxh5 {[%clk 0:00:50]} 31... Kxb5 {[%clk
0:01:46.1]} 32. Qh8 {[%clk 0:00:29]} 32... Qd7 {[%clk 0:01:44.8]} 33. Qa8 {[%clk
0:00:24.8]} 33... Rc6 {[%clk 0:01:42.7]} 34. Qg8 {[%clk 0:00:13.6]} 34... Rc4
{[%clk 0:01:39.2]} 35. b3 {[%clk 0:00:10.7]} 35... Rxd4 {[%clk 0:01:36.5]} 36.
Be3 {[%clk 0:00:09.3]} 36... Rd3 {[%clk 0:01:34.5]} 37. Qa8 {[%clk 0:00:04.2]}
37... d4 {[%clk 0:01:28.7]} 38. Bf4 {[%clk 0:00:04.1]} 38... Rc3 {[%clk
0:01:25.3]} 39. Rd1 {[%clk 0:00:03.5]} 39... Qc6 {[%clk 0:01:25]} 40. Kg1 {[%clk
0:00:01.6]} 40... Rc2 {[%clk 0:01:23]} 0-1

[Event "Early-Titled-Tuesday-Blitz-August-29-2023"]
[Site "Chess.com"]
[Date "2023.08.29"]
[Round "5"]
[White "MikeSailer"]
[Black "joksijoksi"]
[Result "0-1"]
[WhiteElo "2178"]
[BlackElo "2483"]
[TimeControl "180+1"]
[EndTime "8:54:22 PDT"]
[Termination "joksijoksi won on time"]

1. e4 {[%clk 0:02:59.6]} 1... e5 {[%clk 0:03:00.2]} 2. d4 {[%clk 0:02:59.5]}
2... exd4 {[%clk 0:03:00]} 3. Qxd4 {[%clk 0:03:00]} 3... Nc6 {[%clk 0:03:00.6]}
4. Qe3 {[%clk 0:03:00.4]} 4... Nf6 {[%clk 0:03:01.2]} 5. Nc3 {[%clk 0:03:01.2]}
5... Bb4 {[%clk 0:03:01.6]} 6. Bd2 {[%clk 0:03:01.5]} 6... d6 {[%clk 0:03:01.8]}
7. O-O-O {[%clk 0:03:02.4]} 7... O-O {[%clk 0:03:01.9]} 8. Bd3 {[%clk
0:02:53.8]} 8... Re8 {[%clk 0:03:01.4]} 9. Qg3 {[%clk 0:02:54.2]} 9... Ne5
{[%clk 0:02:51.5]} 10. f4 {[%clk 0:02:41.7]} 10... Nxd3+ {[%clk 0:02:37.5]} 11.
cxd3 {[%clk 0:02:40.4]} 11... c5 {[%clk 0:01:59.5]} 12. Nf3 {[%clk 0:02:29.2]}
12... c4 {[%clk 0:01:55.6]} 13. e5 {[%clk 0:02:15.5]} 13... Nd7 {[%clk
0:01:30.9]} 14. d4 {[%clk 0:01:48.9]} 14... Nf8 {[%clk 0:01:26.6]} 15. h3 {[%clk
0:01:17.9]} 15... d5 {[%clk 0:01:11.1]} 16. Qf2 {[%clk 0:01:12.9]} 16... Bxc3
{[%clk 0:01:05]} 17. Bxc3 {[%clk 0:01:09.5]} 17... Bf5 {[%clk 0:01:05.5]} 18. g4
{[%clk 0:01:06.5]} 18... Be4 {[%clk 0:01:06.1]} 19. Rhg1 {[%clk 0:00:55]} 19...
b5 {[%clk 0:01:06.1]} 20. Ng5 {[%clk 0:00:51]} 20... a5 {[%clk 0:01:01.1]} 21.
Nxe4 {[%clk 0:00:49.7]} 21... dxe4 {[%clk 0:01:02]} 22. Qe3 {[%clk 0:00:28.5]}
22... b4 {[%clk 0:01:02.1]} 23. Be1 {[%clk 0:00:28.9]} 23... Qd5 {[%clk
0:00:53.4]} 24. f5 {[%clk 0:00:29.3]} 24... c3 {[%clk 0:00:52.1]} 25. b3 {[%clk
0:00:29.4]} 25... a4 {[%clk 0:00:51.8]} 26. f6 {[%clk 0:00:08.4]} 26... axb3
{[%clk 0:00:51.3]} 27. Qg5 {[%clk 0:00:07.2]} 27... Ng6 {[%clk 0:00:51.3]} 28.
Rg2 {[%clk 0:00:02.1]} 28... bxa2 {[%clk 0:00:50.2]} 0-1

[Event "Early-Titled-Tuesday-Blitz-August-29-2023"]
[Site "Chess.com"]
[Date "2023.08.29"]
[Round "5"]
[White "twofoxniel"]
[Black "Aleksandar-Topalov"]
[Result "1-0"]
[WhiteElo "2664"]
[BlackElo "2347"]
[TimeControl "180+1"]
[EndTime "8:54:25 PDT"]
[Termination "twofoxniel won by resignation"]

1. e4 {[%clk 0:03:00.9]} 1... e6 {[%clk 0:02:59.7]} 2. d4 {[%clk 0:03:00]} 2...
d5 {[%clk 0:02:59.7]} 3. Nd2 {[%clk 0:03:00.5]} 3... Nf6 {[%clk 0:02:59.4]} 4.
e5 {[%clk 0:03:00]} 4... Ng8 {[%clk 0:02:59.6]} 5. Bd3 {[%clk 0:03:00.5]} 5...
Ne7 {[%clk 0:02:59.5]} 6. c3 {[%clk 0:03:00.5]} 6... Qd7 {[%clk 0:02:59.7]} 7.
Ne2 {[%clk 0:03:00.9]} 7... b6 {[%clk 0:03:00]} 8. O-O {[%clk 0:02:59.2]} 8...
Ba6 {[%clk 0:03:00.1]} 9. Bc2 {[%clk 0:02:58.7]} 9... c5 {[%clk 0:02:59.1]} 10.
Re1 {[%clk 0:02:58.7]} 10... Nbc6 {[%clk 0:02:57.3]} 11. Nf3 {[%clk 0:02:56.6]}
11... cxd4 {[%clk 0:02:34.9]} 12. Nexd4 {[%clk 0:02:56.5]} 12... Nxd4 {[%clk
0:02:13.6]} 13. Nxd4 {[%clk 0:02:56.2]} 13... Nc6 {[%clk 0:02:06.8]} 14. Ba4
{[%clk 0:02:55.9]} 14... Bb7 {[%clk 0:02:06.9]} 15. Qg4 {[%clk 0:02:41.2]} 15...
a6 {[%clk 0:02:02]} 16. Nf3 {[%clk 0:02:31.5]} 16... b5 {[%clk 0:01:54.7]} 17.
Bc2 {[%clk 0:02:27.5]} 17... h6 {[%clk 0:01:50]} 18. Bf4 {[%clk 0:02:19.1]}
18... Na5 {[%clk 0:01:30.4]} 19. Qh5 {[%clk 0:02:01.2]} 19... g6 {[%clk
0:01:20.6]} 20. Qh3 {[%clk 0:01:33.3]} 20... Bg7 {[%clk 0:01:12.9]} 21. Rad1
{[%clk 0:01:31.5]} 21... Qc7 {[%clk 0:01:04.7]} 22. Nd4 {[%clk 0:01:24.6]} 22...
Nc6 {[%clk 0:00:58.5]} 23. Nxe6 {[%clk 0:01:15.5]} 23... fxe6 {[%clk 0:00:57.7]}
24. Qxe6+ {[%clk 0:01:15.3]} 24... Kf8 {[%clk 0:00:56.7]} 25. Qxg6 {[%clk
0:01:04.8]} 25... Ne7 {[%clk 0:00:51.1]} 26. Qg3 {[%clk 0:01:00]} 26... Qc4
{[%clk 0:00:30.2]} 27. e6 {[%clk 0:00:51.3]} 27... Bf6 {[%clk 0:00:18]} 28. Qf3
{[%clk 0:00:36.9]} 28... Rb8 {[%clk 0:00:15.9]} 29. Bxb8 {[%clk 0:00:36.2]} 1-0

[Event "Early-Titled-Tuesday-Blitz-August-29-2023"]
[Site "Chess.com"]
[Date "2023.08.29"]
[Round "5"]
[White "AnujShrivatri21"]
[Black "Sadykov_Ramil"]
[Result "0-1"]
[WhiteElo "2814"]
[BlackElo "2634"]
[TimeControl "180+1"]
[EndTime "8:54:26 PDT"]
[Termination "Sadykov_Ramil won by resignation"]

1. e4 {[%clk 0:03:00.9]} 1... e5 {[%clk 0:02:58.3]} 2. Nf3 {[%clk 0:03:00.8]}
2... Nf6 {[%clk 0:02:58.6]} 3. Nxe5 {[%clk 0:02:49.5]} 3... d6 {[%clk
0:02:57.4]} 4. Nf3 {[%clk 0:02:50.1]} 4... Nxe4 {[%clk 0:02:56.9]} 5. d4 {[%clk
0:02:50.8]} 5... d5 {[%clk 0:02:56.5]} 6. Bd3 {[%clk 0:02:51.4]} 6... Bd6 {[%clk
0:02:55.5]} 7. O-O {[%clk 0:02:52]} 7... O-O {[%clk 0:02:54.8]} 8. c4 {[%clk
0:02:52.5]} 8... c6 {[%clk 0:02:55]} 9. Re1 {[%clk 0:02:53.1]} 9... Bf5 {[%clk
0:02:53.9]} 10. Qb3 {[%clk 0:02:53.5]} 10... Qd7 {[%clk 0:02:51.6]} 11. Be3
{[%clk 0:02:52.7]} 11... Na6 {[%clk 0:02:36.4]} 12. a3 {[%clk 0:02:51.8]} 12...
dxc4 {[%clk 0:02:28.1]} 13. Qxc4 {[%clk 0:02:49.6]} 13... Nf6 {[%clk 0:02:10.1]}
14. Bg5 {[%clk 0:02:39.3]} 14... Nd5 {[%clk 0:01:55.8]} 15. Qc2 {[%clk
0:02:37.1]} 15... Bxd3 {[%clk 0:01:52.7]} 16. Qxd3 {[%clk 0:02:38]} 16... Rfe8
{[%clk 0:01:48.6]} 17. Nc3 {[%clk 0:02:38]} 17... Nac7 {[%clk 0:01:47.6]} 18.
Ne5 {[%clk 0:02:36.3]} 18... Qc8 {[%clk 0:01:36.8]} 19. Ne4 {[%clk 0:02:25]}
19... Bxe5 {[%clk 0:01:11.4]} 20. dxe5 {[%clk 0:02:18.6]} 20... Rxe5 {[%clk
0:01:12.3]} 21. Qg3 {[%clk 0:02:17.8]} 21... Re6 {[%clk 0:00:51.4]} 22. Nd6
{[%clk 0:01:57.2]} 22... Qf8 {[%clk 0:00:41.4]} 23. Nxb7 {[%clk 0:01:47.8]}
23... Rb8 {[%clk 0:00:41.5]} 24. Na5 {[%clk 0:01:26.4]} 24... Rxb2 {[%clk
0:00:41.5]} 25. Rxe6 {[%clk 0:01:26.5]} 25... Nxe6 {[%clk 0:00:40]} 26. Nxc6
{[%clk 0:01:23.6]} 26... Qc5 {[%clk 0:00:24.7]} 27. Rc1 {[%clk 0:01:23.6]} 27...
Rc2 {[%clk 0:00:15.8]} 28. Qb8+ {[%clk 0:00:54.5]} 28... Nf8 {[%clk 0:00:15.8]}
29. Rd1 {[%clk 0:00:43.9]} 29... Qxf2+ {[%clk 0:00:15]} 0-1

[Event "Early-Titled-Tuesday-Blitz-August-29-2023"]
[Site "Chess.com"]
[Date "2023.08.29"]
[Round "5"]
[White "Good_Knight_Kiss"]
[Black "Zq1"]
[Result "0-1"]
[WhiteElo "2366"]
[BlackElo "2536"]
[TimeControl "180+1"]
[EndTime "8:54:30 PDT"]
[Termination "Zq1 won on time"]

1. e4 {[%clk 0:00:58.3]} 1... c5 {[%clk 0:02:57.2]} 2. Nf3 {[%clk 0:00:57.8]}
2... d6 {[%clk 0:02:57.2]} 3. d4 {[%clk 0:00:58.1]} 3... cxd4 {[%clk 0:02:57.3]}
4. Nxd4 {[%clk 0:00:59]} 4... Nf6 {[%clk 0:02:57]} 5. Nc3 {[%clk 0:00:58.8]}
5... Nc6 {[%clk 0:02:57]} 6. Nd5 {[%clk 0:00:58.4]} 6... g6 {[%clk 0:02:49.9]}
7. Nxf6+ {[%clk 0:00:57.1]} 7... exf6 {[%clk 0:02:49.1]} 8. Bf4 {[%clk
0:00:37.8]} 8... Be7 {[%clk 0:02:28.1]} 9. Bc4 {[%clk 0:00:34.7]} 9... O-O
{[%clk 0:02:23.5]} 10. O-O {[%clk 0:00:34.6]} 10... Nxd4 {[%clk 0:02:01.5]} 11.
Qxd4 {[%clk 0:00:33.6]} 11... f5 {[%clk 0:02:01.7]} 12. e5 {[%clk 0:00:24]}
12... dxe5 {[%clk 0:01:56.3]} 13. Bxe5 {[%clk 0:00:24.1]} 13... Qxd4 {[%clk
0:01:54.2]} 14. Bxd4 {[%clk 0:00:25]} 14... Be6 {[%clk 0:01:49.3]} 15. Bxe6
{[%clk 0:00:22.6]} 15... fxe6 {[%clk 0:01:48.8]} 16. Rfe1 {[%clk 0:00:22.2]}
16... Kf7 {[%clk 0:01:48.6]} 17. Be5 {[%clk 0:00:15.6]} 17... Rfd8 {[%clk
0:01:46.3]} 18. Rad1 {[%clk 0:00:15.5]} 18... Rac8 {[%clk 0:01:42.3]} 19. c3
{[%clk 0:00:15.5]} 19... a6 {[%clk 0:01:39.3]} 20. f4 {[%clk 0:00:14]} 20... b5
{[%clk 0:01:38.4]} 21. a3 {[%clk 0:00:13]} 21... h6 {[%clk 0:01:34.5]} 22. Kf2
{[%clk 0:00:12.8]} 22... g5 {[%clk 0:01:34]} 23. Kf3 {[%clk 0:00:11.5]} 23... a5
{[%clk 0:01:22.2]} 24. g3 {[%clk 0:00:09.8]} 24... g4+ {[%clk 0:01:16.7]} 25.
Ke2 {[%clk 0:00:09.5]} 25... h5 {[%clk 0:01:17.3]} 26. Rxd8 {[%clk 0:00:05.8]}
26... Rxd8 {[%clk 0:01:12]} 27. Rd1 {[%clk 0:00:06.2]} 27... Rxd1 {[%clk
0:01:10]} 28. Kxd1 {[%clk 0:00:07.1]} 28... Bc5 {[%clk 0:01:07.4]} 29. Ke2
{[%clk 0:00:05.2]} 29... Ke8 {[%clk 0:01:03.7]} 30. b4 {[%clk 0:00:04.6]} 30...
Bb6 {[%clk 0:01:00.7]} 31. Bd4 {[%clk 0:00:03.1]} 31... Bc7 {[%clk 0:00:56.6]}
32. bxa5 {[%clk 0:00:02.2]} 32... Bxa5 {[%clk 0:00:56]} 33. Kd3 {[%clk
0:00:02.6]} 33... Kd7 {[%clk 0:00:52.1]} 34. c4 {[%clk 0:00:03.1]} 34... Kc6
{[%clk 0:00:52.3]} 35. cxb5+ {[%clk 0:00:01.3]} 35... Kxb5 {[%clk 0:00:52.4]}
36. Kc2 {[%clk 0:00:01.1]} 36... Kc4 {[%clk 0:00:47.6]} 0-1

[Event "Early-Titled-Tuesday-Blitz-August-29-2023"]
[Site "Chess.com"]
[Date "2023.08.29"]
[Round "5"]
[White "jerry_77"]
[Black "Mikhail_Bryakin"]
[Result "0-1"]
[WhiteElo "2625"]
[BlackElo "2832"]
[TimeControl "180+1"]
[EndTime "8:54:33 PDT"]
[Termination "Mikhail_Bryakin won by resignation"]

1. e4 {[%clk 0:02:59.6]} 1... d5 {[%clk 0:02:23]} 2. exd5 {[%clk 0:02:59.7]}
2... Qxd5 {[%clk 0:02:23.9]} 3. Nc3 {[%clk 0:03:00.2]} 3... Qe5+ {[%clk
0:02:24]} 4. Qe2 {[%clk 0:03:00.2]} 4... Qxe2+ {[%clk 0:02:23.4]} 5. Ngxe2
{[%clk 0:03:01.1]} 5... Bf5 {[%clk 0:02:23.7]} 6. d3 {[%clk 0:03:01.2]} 6... c6
{[%clk 0:02:22.5]} 7. Bf4 {[%clk 0:03:00.9]} 7... Nd7 {[%clk 0:02:21.8]} 8.
O-O-O {[%clk 0:03:01.3]} 8... e5 {[%clk 0:02:21.9]} 9. Bg3 {[%clk 0:03:01.4]}
9... O-O-O {[%clk 0:02:22.2]} 10. h3 {[%clk 0:03:01.1]} 10... h5 {[%clk
0:02:20.4]} 11. f4 {[%clk 0:03:00.8]} 11... h4 {[%clk 0:02:18.1]} 12. Bh2 {[%clk
0:03:00.9]} 12... Bd6 {[%clk 0:02:17.7]} 13. Ne4 {[%clk 0:02:58.1]} 13... Bc7
{[%clk 0:02:15.5]} 14. Ng5 {[%clk 0:02:54.7]} 14... Nh6 {[%clk 0:02:15.3]} 15.
fxe5 {[%clk 0:02:43]} 15... Bxe5 {[%clk 0:02:07.3]} 16. Bg1 {[%clk 0:02:31]}
16... Bf6 {[%clk 0:02:04]} 17. Nf3 {[%clk 0:02:30.2]} 17... a6 {[%clk
0:01:57.9]} 18. Ned4 {[%clk 0:02:28.8]} 18... Bg6 {[%clk 0:01:56]} 19. Nb3
{[%clk 0:02:28.2]} 19... Nf5 {[%clk 0:01:55.2]} 20. Bf2 {[%clk 0:02:23.5]} 20...
Ng3 {[%clk 0:01:53]} 21. Bxg3 {[%clk 0:02:23.2]} 21... hxg3 {[%clk 0:01:53.9]}
22. d4 {[%clk 0:02:15.4]} 22... Nb6 {[%clk 0:01:51.1]} 23. Bd3 {[%clk
0:02:14.2]} 23... Bxd3 {[%clk 0:01:50.9]} 24. Rxd3 {[%clk 0:02:13.8]} 24... Nd5
{[%clk 0:01:49.8]} 25. c3 {[%clk 0:01:56]} 25... Nf4 {[%clk 0:01:49]} 26. Rd2
{[%clk 0:01:56.1]} 26... g5 {[%clk 0:01:46.7]} 27. Re1 {[%clk 0:01:51]} 27...
Rde8 {[%clk 0:01:43.7]} 28. Rxe8+ {[%clk 0:01:46.6]} 28... Rxe8 {[%clk
0:01:44.6]} 29. Kc2 {[%clk 0:01:44.1]} 29... Re3 {[%clk 0:01:30.6]} 30. Ng1
{[%clk 0:01:22.2]} 30... Re1 {[%clk 0:01:23]} 31. Nf3 {[%clk 0:01:03]} 31... Rf1
{[%clk 0:01:22.3]} 32. Nc1 {[%clk 0:00:23.4]} 32... Nxh3 {[%clk 0:01:11.2]} 33.
gxh3 {[%clk 0:00:23.5]} 33... Rxf3 {[%clk 0:01:11.3]} 34. Nd3 {[%clk 0:00:20.2]}
34... Be7 {[%clk 0:01:03.7]} 35. Ne5 {[%clk 0:00:19.9]} 35... Rf2 {[%clk
0:01:02]} 36. Kd3 {[%clk 0:00:09]} 36... Bd6 {[%clk 0:00:56.6]} 37. Rxf2 {[%clk
0:00:08.6]} 37... gxf2 {[%clk 0:00:55.3]} 38. Ke2 {[%clk 0:00:03.9]} 38... Bxe5
{[%clk 0:00:55.8]} 39. dxe5 {[%clk 0:00:04.8]} 39... Kd7 {[%clk 0:00:56.5]} 40.
Kxf2 {[%clk 0:00:05.4]} 40... Ke6 {[%clk 0:00:57.2]} 41. Kf3 {[%clk 0:00:06.1]}
41... Kxe5 {[%clk 0:00:57.9]} 42. Kg4 {[%clk 0:00:06.7]} 42... f6 {[%clk
0:00:58.5]} 43. Kf3 {[%clk 0:00:07.2]} 43... f5 {[%clk 0:00:57.8]} 0-1

[Event "Early-Titled-Tuesday-Blitz-August-29-2023"]
[Site "Chess.com"]
[Date "2023.08.29"]
[Round "5"]
[White "Dedic8"]
[Black "amintabatabaei"]
[Result "1-0"]
[WhiteElo "2844"]
[BlackElo "2945"]
[TimeControl "180+1"]
[EndTime "8:54:39 PDT"]
[Termination "Dedic8 won by resignation"]

1. d4 {[%clk 0:03:00.9]} 1... Nf6 {[%clk 0:02:40.1]} 2. c4 {[%clk 0:03:01.1]}
2... e5 {[%clk 0:02:39]} 3. dxe5 {[%clk 0:02:59.7]} 3... Ng4 {[%clk 0:02:39.4]}
4. Nf3 {[%clk 0:02:58.6]} 4... Bc5 {[%clk 0:02:39.1]} 5. e3 {[%clk 0:02:55.6]}
5... Nc6 {[%clk 0:02:39.1]} 6. Nc3 {[%clk 0:02:43.3]} 6... O-O {[%clk
0:02:36.7]} 7. Be2 {[%clk 0:02:38.4]} 7... Ngxe5 {[%clk 0:02:36.7]} 8. Nxe5
{[%clk 0:02:37.9]} 8... Nxe5 {[%clk 0:02:37.6]} 9. O-O {[%clk 0:02:37.8]} 9...
a5 {[%clk 0:02:38.3]} 10. b3 {[%clk 0:02:36]} 10... Re8 {[%clk 0:02:37.9]} 11.
Bb2 {[%clk 0:02:36.2]} 11... Ra6 {[%clk 0:02:38.5]} 12. Nd5 {[%clk 0:02:32.5]}
12... Rh6 {[%clk 0:02:34.3]} 13. g3 {[%clk 0:02:22]} 13... d6 {[%clk 0:02:33.1]}
14. f4 {[%clk 0:02:07.6]} 14... Nd7 {[%clk 0:02:14.4]} 15. Bd4 {[%clk
0:02:07.1]} 15... c6 {[%clk 0:02:13.5]} 16. Nc3 {[%clk 0:02:03.9]} 16... Qe7
{[%clk 0:02:09.9]} 17. Qd2 {[%clk 0:02:00.1]} 17... Nf6 {[%clk 0:02:07.6]} 18.
Bf3 {[%clk 0:01:44.9]} 18... Ng4 {[%clk 0:02:00.3]} 19. Bxg4 {[%clk 0:01:45]}
19... Bxg4 {[%clk 0:02:01.2]} 20. Rae1 {[%clk 0:01:42.8]} 20... Bh3 {[%clk
0:01:47]} 21. Rf2 {[%clk 0:01:42.7]} 21... Re6 {[%clk 0:01:29.4]} 22. f5 {[%clk
0:01:28.8]} 22... Rxe3 {[%clk 0:01:23.9]} 23. Rxe3 {[%clk 0:01:27.8]} 23... Qxe3
{[%clk 0:01:24.6]} 24. Bxe3 {[%clk 0:01:25.1]} 24... Bxe3 {[%clk 0:01:19.7]} 25.
Qe2 {[%clk 0:01:04.7]} 25... Bxf5 {[%clk 0:01:19]} 26. Nd1 {[%clk 0:01:04.7]}
26... Bxf2+ {[%clk 0:01:17.2]} 27. Qxf2 {[%clk 0:01:05.6]} 27... Be4 {[%clk
0:01:14.9]} 28. Nc3 {[%clk 0:01:03.6]} 28... Bg6 {[%clk 0:01:12.9]} 29. Qb6
{[%clk 0:01:03.9]} 29... h5 {[%clk 0:01:12.5]} 30. Qxb7 {[%clk 0:01:02.9]} 30...
Re3 {[%clk 0:01:12.5]} 31. Qa8+ {[%clk 0:00:57.9]} 31... Kh7 {[%clk 0:01:12.3]}
32. Qxa5 {[%clk 0:00:58.6]} 32... h4 {[%clk 0:01:08.2]} 33. gxh4 {[%clk
0:00:58.7]} 33... c5 {[%clk 0:01:05.8]} 34. Nd5 {[%clk 0:00:56.2]} 34... Re4
{[%clk 0:01:04.7]} 35. Qd8 {[%clk 0:00:51.7]} 35... Re6 {[%clk 0:01:02.9]} 36.
a4 {[%clk 0:00:51.9]} 36... Bc2 {[%clk 0:01:02.8]} 37. a5 {[%clk 0:00:51]} 37...
Bxb3 {[%clk 0:01:03.5]} 38. a6 {[%clk 0:00:51]} 38... Bxc4 {[%clk 0:01:04.2]}
39. Nc7 {[%clk 0:00:49.4]} 39... Re1+ {[%clk 0:01:00.8]} 40. Kf2 {[%clk
0:00:49.2]} 40... Re2+ {[%clk 0:01:00.8]} 41. Kf3 {[%clk 0:00:49.5]} 41... Ra2
{[%clk 0:01:00.6]} 42. Qxd6 {[%clk 0:00:47.9]} 42... Bf1 {[%clk 0:00:55.2]} 43.
Qd1 {[%clk 0:00:39.6]} 43... Ra3+ {[%clk 0:00:51.3]} 44. Kf2 {[%clk 0:00:38]}
44... Bd3 {[%clk 0:00:49.4]} 45. a7 {[%clk 0:00:29.8]} 45... Be4 {[%clk
0:00:49.8]} 46. Qh5+ {[%clk 0:00:29.7]} 46... Kg8 {[%clk 0:00:49.3]} 47. Qxc5
{[%clk 0:00:30.4]} 47... Ra2+ {[%clk 0:00:48.3]} 48. Ke3 {[%clk 0:00:30.8]}
48... f5 {[%clk 0:00:47.4]} 49. Qc4+ {[%clk 0:00:30.4]} 1-0